[Event "*** SCC Grand Prix: Titled Tuesday Blitz"]
[Site "Chess.com"]
[Date "2020.10.06"]
[Round "5"]
[White "ViktoriyaTarasova"]
[Black "Khnykin_Nikolay"]
[Result "1-0"]
[WhiteElo "2269"]
[BlackElo "2049"]
[TimeControl "180+1"]
[EndTime "10:53:46 PDT"]
[Termination "ViktoriyaTarasova won on time"]

1. d4 {[%clk 0:03:00.9]} 1... e6 {[%clk 0:00:13.8]} 2. c4 {[%clk 0:02:58.7]}
2... b6 {[%clk 0:00:11.1]} 3. Nc3 {[%clk 0:02:58.4]} 3... Bb7 {[%clk 0:00:11]}
4. e4 {[%clk 0:02:58.4]} 4... Nf6 {[%clk 0:00:10.8]} 5. f3 {[%clk 0:02:56]} 5...
d6 {[%clk 0:00:10]} 6. Bd3 {[%clk 0:02:55.2]} 6... Be7 {[%clk 0:00:09.7]} 7.
Nge2 {[%clk 0:02:54.9]} 7... Nbd7 {[%clk 0:00:09.5]} 8. O-O {[%clk 0:02:55.4]}
8... O-O {[%clk 0:00:09]} 9. Be3 {[%clk 0:02:55.9]} 9... c5 {[%clk 0:00:08.5]}
10. Qd2 {[%clk 0:02:55.1]} 10... Rc8 {[%clk 0:00:05.4]} 11. Rac1 {[%clk
0:02:51.9]} 11... Qc7 {[%clk 0:00:05.7]} 12. d5 {[%clk 0:02:49.9]} 12... e5
{[%clk 0:00:04.6]} 13. Ng3 {[%clk 0:02:48.5]} 13... a6 {[%clk 0:00:04.7]} 14.
Nf5 {[%clk 0:02:47.5]} 14... Qd8 {[%clk 0:00:03.8]} 15. g4 {[%clk 0:02:45.6]}
15... Ne8 {[%clk 0:00:02.2]} 16. Kh1 {[%clk 0:02:44.3]} 1-0

[Event "*** SCC Grand Prix: Titled Tuesday Blitz"]
[Site "Chess.com"]
[Date "2020.10.06"]
[Round "5"]
[White "GlennTipton"]
[Black "Bastiandash"]
[Result "1-0"]
[WhiteElo "2446"]
[BlackElo "2270"]
[TimeControl "180+1"]
[EndTime "10:54:03 PDT"]
[Termination "GlennTipton won by resignation"]

1. e4 {[%clk 0:02:59]} 1... c5 {[%clk 0:02:58.9]} 2. Nf3 {[%clk 0:02:58.8]} 2...
e6 {[%clk 0:02:58.1]} 3. d4 {[%clk 0:02:58.3]} 3... cxd4 {[%clk 0:02:59]} 4.
Nxd4 {[%clk 0:02:59.2]} 4... a6 {[%clk 0:02:59.2]} 5. Nc3 {[%clk 0:02:57]} 5...
b5 {[%clk 0:02:59.4]} 6. Bd3 {[%clk 0:02:56.2]} 6... Qb6 {[%clk 0:02:58.3]} 7.
Nf3 {[%clk 0:02:55.2]} 7... Qc7 {[%clk 0:02:58.3]} 8. e5 {[%clk 0:02:44]} 8...
Bb7 {[%clk 0:02:56.2]} 9. Bf4 {[%clk 0:02:34.2]} 9... d6 {[%clk 0:02:55.9]} 10.
exd6 {[%clk 0:02:33.1]} 10... Bxd6 {[%clk 0:02:56.8]} 11. Bxd6 {[%clk
0:02:33.1]} 11... Qxd6 {[%clk 0:02:43.5]} 12. Bxb5+ {[%clk 0:02:31.6]} 12... Ke7
{[%clk 0:02:41]} 13. Qxd6+ {[%clk 0:02:31.4]} 13... Kxd6 {[%clk 0:02:41.9]} 14.
O-O-O+ {[%clk 0:02:31.7]} 14... Ke7 {[%clk 0:02:41.5]} 15. Ba4 {[%clk 0:02:25]}
15... Nf6 {[%clk 0:02:40.6]} 16. Rhe1 {[%clk 0:02:21.1]} 16... Bxf3 {[%clk
0:02:40.9]} 17. gxf3 {[%clk 0:02:20.6]} 17... Ra7 {[%clk 0:02:34.9]} 18. f4
{[%clk 0:02:11.8]} 18... g6 {[%clk 0:02:34.2]} 19. Nd5+ {[%clk 0:02:04.6]} 19...
Nxd5 {[%clk 0:02:26.4]} 20. Rxd5 {[%clk 0:02:05.5]} 20... Rc8 {[%clk 0:02:23.7]}
21. Re4 {[%clk 0:02:00.5]} 21... Nc6 {[%clk 0:02:14.1]} 22. Rc5 {[%clk 0:01:59]}
22... Kd6 {[%clk 0:02:09]} 23. Rec4 {[%clk 0:01:56.4]} 23... Rac7 {[%clk
0:02:08.4]} 24. Rxc6+ {[%clk 0:01:54]} 24... Rxc6 {[%clk 0:02:09.3]} 25. Rxc6+
{[%clk 0:01:54.9]} 25... Rxc6 {[%clk 0:02:10.2]} 26. Bxc6 {[%clk 0:01:55.6]}
26... Kxc6 {[%clk 0:02:11.1]} 27. Kd2 {[%clk 0:01:53.8]} 27... Kd5 {[%clk
0:02:09.1]} 28. Kd3 {[%clk 0:01:52.7]} 28... f6 {[%clk 0:02:07.7]} 29. c4+
{[%clk 0:01:51.8]} 29... Kc5 {[%clk 0:02:07.8]} 30. Kc3 {[%clk 0:01:50]} 30...
a5 {[%clk 0:02:07.3]} 31. b3 {[%clk 0:01:49.9]} 31... g5 {[%clk 0:02:02.6]} 32.
fxg5 {[%clk 0:01:49.9]} 32... fxg5 {[%clk 0:02:03.5]} 33. a3 {[%clk 0:01:48.8]}
33... h5 {[%clk 0:02:04.1]} 34. b4+ {[%clk 0:01:49.7]} 34... axb4+ {[%clk
0:02:05]} 35. axb4+ {[%clk 0:01:50.1]} 35... Kd6 {[%clk 0:02:05.9]} 36. Kd4
{[%clk 0:01:50.2]} 36... g4 {[%clk 0:02:04.9]} 37. c5+ {[%clk 0:01:47.7]} 37...
Kd7 {[%clk 0:02:02.9]} 38. b5 {[%clk 0:01:46.6]} 38... h4 {[%clk 0:02:03.1]} 39.
Ke5 {[%clk 0:01:46.2]} 39... Ke7 {[%clk 0:01:55.6]} 40. Kf4 {[%clk 0:01:46.3]}
40... g3 {[%clk 0:01:54.5]} 41. fxg3 {[%clk 0:01:45.3]} 41... hxg3 {[%clk
0:01:53.1]} 42. hxg3 {[%clk 0:01:45.4]} 1-0

[Event "*** SCC Grand Prix: Titled Tuesday Blitz"]
[Site "Chess.com"]
[Date "2020.10.06"]
[Round "5"]
[White "night_player"]
[Black "PattyCastillo"]
[Result "1-0"]
[WhiteElo "2243"]
[BlackElo "2005"]
[TimeControl "180+1"]
[EndTime "10:54:05 PDT"]
[Termination "night_player won by resignation"]

1. e4 {[%clk 0:03:00.9]} 1... c5 {[%clk 0:02:57.9]} 2. c3 {[%clk 0:03:00.1]}
2... d6 {[%clk 0:02:55]} 3. d4 {[%clk 0:03:00.1]} 3... cxd4 {[%clk 0:02:54.5]}
4. cxd4 {[%clk 0:03:01]} 4... Nf6 {[%clk 0:02:53.9]} 5. Nc3 {[%clk 0:02:57.1]}
5... g6 {[%clk 0:02:51.3]} 6. Nf3 {[%clk 0:02:54.1]} 6... Bg7 {[%clk 0:02:51.4]}
7. Be3 {[%clk 0:02:50.7]} 7... O-O {[%clk 0:02:51]} 8. Bd3 {[%clk 0:02:49.9]}
8... Nc6 {[%clk 0:02:48.4]} 9. O-O {[%clk 0:02:49.9]} 9... Bg4 {[%clk
0:02:48.1]} 10. h3 {[%clk 0:02:46.8]} 10... Bd7 {[%clk 0:02:43.3]} 11. a3 {[%clk
0:02:40.4]} 11... e6 {[%clk 0:02:39.1]} 12. Qd2 {[%clk 0:02:27.2]} 12... a6
{[%clk 0:02:35.5]} 13. Rac1 {[%clk 0:02:23.6]} 13... Rc8 {[%clk 0:02:34.7]} 14.
Rfd1 {[%clk 0:02:09.9]} 14... Na5 {[%clk 0:02:33.8]} 15. e5 {[%clk 0:02:06.1]}
15... dxe5 {[%clk 0:02:16.5]} 16. dxe5 {[%clk 0:02:07]} 16... Ne8 {[%clk
0:02:06.4]} 17. Bc2 {[%clk 0:02:06]} 17... Nc4 {[%clk 0:01:30.5]} 18. Qxd7
{[%clk 0:02:01]} 18... Qxd7 {[%clk 0:01:28.6]} 19. Rxd7 {[%clk 0:02:01.9]} 19...
Nxb2 {[%clk 0:01:26.1]} 20. Ne4 {[%clk 0:01:50.9]} 20... Nc4 {[%clk 0:01:16.5]}
21. Bb3 {[%clk 0:01:47.6]} 21... b5 {[%clk 0:01:12.9]} 22. Bxc4 {[%clk
0:01:39.7]} 22... Rxc4 {[%clk 0:01:10.8]} 23. Rxc4 {[%clk 0:01:38.7]} 23... bxc4
{[%clk 0:01:11.7]} 24. Bc5 {[%clk 0:01:33.6]} 1-0

[Event "*** SCC Grand Prix: Titled Tuesday Blitz"]
[Site "Chess.com"]
[Date "2020.10.06"]
[Round "5"]
[White "chessmadara"]
[Black "Colombiano07"]
[Result "1-0"]
[WhiteElo "2113"]
[BlackElo "2314"]
[TimeControl "180+1"]
[EndTime "10:54:16 PDT"]
[Termination "chessmadara won by resignation"]

1. c4 {[%clk 0:03:00.9]} 1... c6 {[%clk 0:02:47.9]} 2. Nf3 {[%clk 0:02:55.2]}
2... Nf6 {[%clk 0:02:46.3]} 3. g3 {[%clk 0:02:54]} 3... d5 {[%clk 0:02:46.3]} 4.
Bg2 {[%clk 0:02:45.5]} 4... dxc4 {[%clk 0:02:46.1]} 5. O-O {[%clk 0:02:43.6]}
5... Be6 {[%clk 0:02:39.2]} 6. a4 {[%clk 0:02:28]} 6... Nbd7 {[%clk 0:02:34.9]}
7. Ng5 {[%clk 0:02:18.2]} 7... Bd5 {[%clk 0:02:34.3]} 8. e4 {[%clk 0:02:16.8]}
8... h6 {[%clk 0:02:25]} 9. exd5 {[%clk 0:02:13.8]} 9... hxg5 {[%clk 0:02:25.9]}
10. dxc6 {[%clk 0:02:13.9]} 10... bxc6 {[%clk 0:02:23.1]} 11. Bxc6 {[%clk
0:02:14.8]} 11... Rc8 {[%clk 0:02:23.7]} 12. Bg2 {[%clk 0:02:12.7]} 12... e6
{[%clk 0:02:21]} 13. b3 {[%clk 0:02:12.9]} 13... cxb3 {[%clk 0:02:17.5]} 14.
Qxb3 {[%clk 0:02:13.8]} 14... Qb6 {[%clk 0:02:18]} 15. Qe3 {[%clk 0:02:01.8]}
15... Rxh2 {[%clk 0:02:06.3]} 16. Qxb6 {[%clk 0:01:57.7]} 16... Rxg2+ {[%clk
0:02:06.3]} 17. Kxg2 {[%clk 0:01:56.7]} 17... axb6 {[%clk 0:02:07.2]} 18. d4
{[%clk 0:01:53]} 18... Bb4 {[%clk 0:02:03.7]} 19. Bxg5 {[%clk 0:01:49.7]} 19...
Ne4 {[%clk 0:02:00.2]} 20. Be3 {[%clk 0:01:45.8]} 20... f5 {[%clk 0:01:58.8]}
21. Na3 {[%clk 0:01:42.6]} 21... Kf7 {[%clk 0:01:55]} 22. Nb5 {[%clk 0:01:38.2]}
22... Rc2 {[%clk 0:01:53]} 23. Rac1 {[%clk 0:01:29]} 23... Ra2 {[%clk
0:01:51.9]} 24. Rc7 {[%clk 0:01:27]} 24... Ke8 {[%clk 0:01:51.6]} 25. Ra7 {[%clk
0:01:25.1]} 25... g5 {[%clk 0:01:49.8]} 26. Nc7+ {[%clk 0:01:05.4]} 26... Ke7
{[%clk 0:01:48.9]} 27. d5 {[%clk 0:01:05.6]} 27... Bd6 {[%clk 0:01:41.7]} 28.
dxe6 {[%clk 0:01:03.8]} 1-0

[Event "*** SCC Grand Prix: Titled Tuesday Blitz"]
[Site "Chess.com"]
[Date "2020.10.06"]
[Round "5"]
[White "Quiet_Desperation"]
[Black "SergeyShtyka"]
[Result "1-0"]
[WhiteElo "1929"]
[BlackElo "2291"]
[TimeControl "180+1"]
[EndTime "10:54:29 PDT"]
[Termination "Quiet_Desperation won by checkmate"]

1. e4 {[%clk 0:03:00.9]} 1... c5 {[%clk 0:02:59.4]} 2. Nf3 {[%clk 0:03:01.2]}
2... d6 {[%clk 0:02:58.7]} 3. d4 {[%clk 0:03:01.5]} 3... cxd4 {[%clk 0:02:59.1]}
4. Nxd4 {[%clk 0:03:02.4]} 4... Nf6 {[%clk 0:02:58.7]} 5. Nc3 {[%clk 0:03:02.7]}
5... g6 {[%clk 0:02:58.1]} 6. Be3 {[%clk 0:03:02.4]} 6... Bg7 {[%clk 0:02:58.1]}
7. Bc4 {[%clk 0:03:02.6]} 7... O-O {[%clk 0:02:58.4]} 8. f3 {[%clk 0:03:03.2]}
8... Nc6 {[%clk 0:02:58.7]} 9. Qd2 {[%clk 0:03:03.5]} 9... Bd7 {[%clk
0:02:58.1]} 10. O-O-O {[%clk 0:03:03.6]} 10... Qa5 {[%clk 0:02:56.2]} 11. Bb3
{[%clk 0:02:57.2]} 11... Rfc8 {[%clk 0:02:52.4]} 12. h4 {[%clk 0:02:55.8]} 12...
Ne5 {[%clk 0:02:50.5]} 13. h5 {[%clk 0:02:55.6]} 13... Nxh5 {[%clk 0:02:50.7]}
14. g4 {[%clk 0:02:54.3]} 14... Nf6 {[%clk 0:02:50.7]} 15. Bh6 {[%clk
0:02:53.6]} 15... Bh8 {[%clk 0:02:43.1]} 16. Bg5 {[%clk 0:02:27.7]} 16... Nc4
{[%clk 0:02:31.5]} 17. Bxc4 {[%clk 0:02:20.9]} 17... Rxc4 {[%clk 0:02:32.4]} 18.
Nb3 {[%clk 0:02:12.8]} 18... Qe5 {[%clk 0:01:48.3]} 19. f4 {[%clk 0:02:04.1]}
19... Qe6 {[%clk 0:01:29.8]} 20. Qh2 {[%clk 0:01:52.3]} 20... Rxc3 {[%clk
0:01:13.6]} 21. bxc3 {[%clk 0:01:49.5]} 21... Qxe4 {[%clk 0:00:59.5]} 22. Rde1
{[%clk 0:01:46.2]} 22... Qc6 {[%clk 0:00:44.2]} 23. Rxe7 {[%clk 0:01:43.7]}
23... Bxg4 {[%clk 0:00:42.3]} 24. Bxf6 {[%clk 0:01:39.5]} 24... Bxf6 {[%clk
0:00:42]} 25. Qxh7+ {[%clk 0:01:39.2]} 25... Kf8 {[%clk 0:00:42.5]} 26. Qxf7#
{[%clk 0:01:39.3]} 1-0

[Event "*** SCC Grand Prix: Titled Tuesday Blitz"]
[Site "Chess.com"]
[Date "2020.10.06"]
[Round "5"]
[White "Rogarcia1"]
[Black "TrickyFortem"]
[Result "1-0"]
[WhiteElo "2186"]
[BlackElo "2462"]
[TimeControl "180+1"]
[EndTime "10:54:33 PDT"]
[Termination "Rogarcia1 won by resignation"]

1. e4 {[%clk 0:03:00.9]} 1... c5 {[%clk 0:03:00.1]} 2. Nf3 {[%clk 0:03:00.7]}
2... d6 {[%clk 0:03:00.5]} 3. d4 {[%clk 0:03:00.6]} 3... cxd4 {[%clk 0:03:01.4]}
4. Qxd4 {[%clk 0:03:00.3]} 4... Nc6 {[%clk 0:03:00.7]} 5. Qe3 {[%clk 0:03:00.3]}
5... Bd7 {[%clk 0:03:01.3]} 6. Be2 {[%clk 0:02:58.4]} 6... g6 {[%clk 0:03:01.2]}
7. h3 {[%clk 0:02:56.4]} 7... Bg7 {[%clk 0:03:01.8]} 8. O-O {[%clk 0:02:56]}
8... Nf6 {[%clk 0:03:02.4]} 9. c4 {[%clk 0:02:53.2]} 9... O-O {[%clk 0:03:02.6]}
10. Rd1 {[%clk 0:02:53.2]} 10... Rc8 {[%clk 0:03:01.1]} 11. Nc3 {[%clk
0:02:52.7]} 11... Qa5 {[%clk 0:02:59.9]} 12. Bd2 {[%clk 0:02:49.2]} 12... Ne5
{[%clk 0:02:47.5]} 13. b3 {[%clk 0:01:58.1]} 13... Nxf3+ {[%clk 0:02:40.9]} 14.
Bxf3 {[%clk 0:01:56.5]} 14... Bc6 {[%clk 0:02:40.2]} 15. Rac1 {[%clk 0:01:52.9]}
15... a6 {[%clk 0:02:27.1]} 16. Nd5 {[%clk 0:01:46.9]} 16... Qd8 {[%clk
0:02:27.1]} 17. Bc3 {[%clk 0:01:46.6]} 17... Nxd5 {[%clk 0:02:26.1]} 18. exd5
{[%clk 0:01:46.5]} 18... Bd7 {[%clk 0:02:24]} 19. Re1 {[%clk 0:01:41.1]} 19...
Re8 {[%clk 0:02:23.6]} 20. Bxg7 {[%clk 0:01:29.5]} 20... Kxg7 {[%clk 0:02:23.8]}
21. Qd4+ {[%clk 0:01:29.7]} 21... Kg8 {[%clk 0:02:23.4]} 22. h4 {[%clk
0:01:29.3]} 22... b5 {[%clk 0:02:22.8]} 23. h5 {[%clk 0:01:26]} 23... bxc4
{[%clk 0:02:20.3]} 24. hxg6 {[%clk 0:01:25.2]} 24... hxg6 {[%clk 0:02:19.6]} 25.
bxc4 {[%clk 0:01:24.4]} 25... Bf5 {[%clk 0:02:13.8]} 26. Be4 {[%clk 0:01:21.3]}
26... Qd7 {[%clk 0:02:13]} 27. Bxf5 {[%clk 0:01:18.3]} 27... Qxf5 {[%clk
0:02:13]} 28. Re4 {[%clk 0:01:19]} 28... f6 {[%clk 0:02:09.4]} 29. Rce1 {[%clk
0:01:18.1]} 29... Kf7 {[%clk 0:02:08.7]} 30. Qa7 {[%clk 0:01:12.9]} 30... Qe5
{[%clk 0:01:39.6]} 31. Rxe5 {[%clk 0:01:12.7]} 31... fxe5 {[%clk 0:01:40.1]} 32.
Re4 {[%clk 0:01:10.3]} 32... Ra8 {[%clk 0:01:37.3]} 33. Qd7 {[%clk 0:01:10]}
33... Rab8 {[%clk 0:01:34.6]} 34. Qe6+ {[%clk 0:01:10.1]} 34... Kg7 {[%clk
0:01:33.4]} 35. Rg4 {[%clk 0:01:10.2]} 1-0

[Event "*** SCC Grand Prix: Titled Tuesday Blitz"]
[Site "Chess.com"]
[Date "2020.10.06"]
[Round "5"]
[White "Sanyura"]
[Black "kasparicy"]
[Result "1-0"]
[WhiteElo "2546"]
[BlackElo "2386"]
[TimeControl "180+1"]
[EndTime "10:54:37 PDT"]
[Termination "Sanyura won by checkmate"]

1. e4 {[%clk 0:03:00.9]} 1... c5 {[%clk 0:02:58.7]} 2. Nf3 {[%clk 0:03:00.2]}
2... d6 {[%clk 0:02:59.2]} 3. d4 {[%clk 0:02:59.4]} 3... cxd4 {[%clk 0:03:00.1]}
4. Nxd4 {[%clk 0:02:59.2]} 4... Nf6 {[%clk 0:03:00.7]} 5. Nc3 {[%clk 0:02:58.7]}
5... a6 {[%clk 0:03:00.7]} 6. g3 {[%clk 0:02:55.9]} 6... e6 {[%clk 0:02:52.8]}
7. Bg2 {[%clk 0:02:55.2]} 7... Be7 {[%clk 0:02:53]} 8. O-O {[%clk 0:02:55.1]}
8... O-O {[%clk 0:02:53.5]} 9. Be3 {[%clk 0:02:54.6]} 9... Qc7 {[%clk
0:02:54.1]} 10. f4 {[%clk 0:02:53.1]} 10... Bd7 {[%clk 0:02:53.5]} 11. Qe2
{[%clk 0:02:52.1]} 11... Nc6 {[%clk 0:02:52.4]} 12. Rad1 {[%clk 0:02:51.6]}
12... Nxd4 {[%clk 0:02:52.1]} 13. Bxd4 {[%clk 0:02:51]} 13... Bc6 {[%clk
0:02:53]} 14. h3 {[%clk 0:02:49.5]} 14... b5 {[%clk 0:02:52.9]} 15. a3 {[%clk
0:02:45.1]} 15... Qb7 {[%clk 0:02:53.1]} 16. Kh2 {[%clk 0:02:40.4]} 16... Rac8
{[%clk 0:02:52.5]} 17. g4 {[%clk 0:02:38.2]} 17... d5 {[%clk 0:02:52.3]} 18. e5
{[%clk 0:02:25.2]} 18... Ne4 {[%clk 0:02:51.4]} 19. f5 {[%clk 0:02:22.2]} 19...
b4 {[%clk 0:02:31.3]} 20. axb4 {[%clk 0:02:14.9]} 20... Bxb4 {[%clk 0:02:25.9]}
21. Nxe4 {[%clk 0:01:55.5]} 21... dxe4 {[%clk 0:02:25.3]} 22. c3 {[%clk
0:01:55.8]} 22... Bb5 {[%clk 0:02:14]} 23. Qe3 {[%clk 0:01:55.5]} 23... Bxf1
{[%clk 0:02:07.2]} 24. Rxf1 {[%clk 0:01:56.4]} 24... Be7 {[%clk 0:01:53.8]} 25.
f6 {[%clk 0:01:56]} 25... gxf6 {[%clk 0:01:47.6]} 26. exf6 {[%clk 0:01:52.1]}
26... Bd6+ {[%clk 0:01:47.6]} 27. Kh1 {[%clk 0:01:52.5]} 27... Kh8 {[%clk
0:01:41.7]} 28. Bxe4 {[%clk 0:01:51.6]} 28... Qb5 {[%clk 0:01:23.9]} 29. Kg2
{[%clk 0:01:41.8]} 29... Rg8 {[%clk 0:01:18.5]} 30. Rf2 {[%clk 0:01:37.3]} 30...
e5 {[%clk 0:01:09.7]} 31. Qh6 {[%clk 0:01:30]} 31... Rg6 {[%clk 0:01:09.7]} 32.
Bxg6 {[%clk 0:01:30]} 32... fxg6 {[%clk 0:01:09.9]} 33. Qg7# {[%clk 0:01:29.7]}
1-0

[Event "*** SCC Grand Prix: Titled Tuesday Blitz"]
[Site "Chess.com"]
[Date "2020.10.06"]
[Round "5"]
[White "Mr_Sinigami"]
[Black "FMalexhdez"]
[Result "1-0"]
[WhiteElo "2491"]
[BlackElo "2276"]
[TimeControl "180+1"]
[EndTime "10:54:40 PDT"]
[Termination "Mr_Sinigami won by resignation"]

1. d4 {[%clk 0:03:00.9]} 1... Nf6 {[%clk 0:02:59.1]} 2. Nf3 {[%clk 0:03:00.7]}
2... e6 {[%clk 0:02:59.6]} 3. Bf4 {[%clk 0:03:00.3]} 3... b6 {[%clk 0:02:49.8]}
4. e3 {[%clk 0:02:59.2]} 4... Bb7 {[%clk 0:02:50.3]} 5. h3 {[%clk 0:02:58.6]}
5... d6 {[%clk 0:02:48.7]} 6. Be2 {[%clk 0:02:58.5]} 6... Nbd7 {[%clk
0:02:48.9]} 7. O-O {[%clk 0:02:58.4]} 7... c5 {[%clk 0:02:49.4]} 8. c3 {[%clk
0:02:57.5]} 8... a6 {[%clk 0:02:49.8]} 9. a4 {[%clk 0:02:57]} 9... Be7 {[%clk
0:02:50]} 10. Na3 {[%clk 0:02:56.5]} 10... Qc7 {[%clk 0:02:37.2]} 11. Nc4 {[%clk
0:02:49.8]} 11... b5 {[%clk 0:02:28.2]} 12. axb5 {[%clk 0:02:49.2]} 12... axb5
{[%clk 0:02:27.8]} 13. Rxa8+ {[%clk 0:02:49.8]} 13... Bxa8 {[%clk 0:02:27.9]}
14. Na3 {[%clk 0:02:49.9]} 14... b4 {[%clk 0:02:20.6]} 15. Nb5 {[%clk
0:02:45.9]} 15... Qb6 {[%clk 0:02:18.9]} 16. dxc5 {[%clk 0:02:43.6]} 16... Nxc5
{[%clk 0:01:33.4]} 17. Nxd6+ {[%clk 0:02:41.6]} 17... Bxd6 {[%clk 0:01:28.9]}
18. Qxd6 {[%clk 0:02:41.9]} 18... Ncd7 {[%clk 0:01:11.7]} 19. Ra1 {[%clk
0:02:29.1]} 19... Bb7 {[%clk 0:00:52.5]} 20. Qxb6 {[%clk 0:01:55.1]} 20... Nxb6
{[%clk 0:00:51.8]} 21. Bb5+ {[%clk 0:01:55.7]} 21... Kd8 {[%clk 0:00:43.4]} 22.
Ng5 {[%clk 0:01:52.8]} 22... Kc8 {[%clk 0:00:18.5]} 23. Nxf7 {[%clk 0:01:51.1]}
1-0

[Event "*** SCC Grand Prix: Titled Tuesday Blitz"]
[Site "Chess.com"]
[Date "2020.10.06"]
[Round "5"]
[White "juancruzarias"]
[Black "norwaytoadog"]
[Result "1-0"]
[WhiteElo "2494"]
[BlackElo "2291"]
[TimeControl "180+1"]
[EndTime "10:54:46 PDT"]
[Termination "juancruzarias won by resignation"]

1. e4 {[%clk 0:03:00.9]} 1... c5 {[%clk 0:02:58.5]} 2. Nc3 {[%clk 0:03:01.5]}
2... Nc6 {[%clk 0:02:58.2]} 3. Bb5 {[%clk 0:03:02.1]} 3... Nd4 {[%clk
0:02:55.6]} 4. Bc4 {[%clk 0:03:02.4]} 4... Nf6 {[%clk 0:02:51.3]} 5. e5 {[%clk
0:02:58.9]} 5... d5 {[%clk 0:02:45.7]} 6. exf6 {[%clk 0:02:34.6]} 6... dxc4
{[%clk 0:02:44.8]} 7. fxg7 {[%clk 0:02:32.9]} 7... Bxg7 {[%clk 0:02:44.7]} 8.
Nge2 {[%clk 0:02:28]} 8... Bf5 {[%clk 0:02:37]} 9. Nxd4 {[%clk 0:02:20.1]} 9...
cxd4 {[%clk 0:02:31.2]} 10. Ne2 {[%clk 0:02:20.5]} 10... d3 {[%clk 0:02:12.7]}
11. cxd3 {[%clk 0:02:21.4]} 11... Qxd3 {[%clk 0:02:08.2]} 12. O-O {[%clk
0:02:16.9]} 12... Be5 {[%clk 0:02:00.7]} 13. Ng3 {[%clk 0:02:10.3]} 13... Bg4
{[%clk 0:01:54]} 14. Qxg4 {[%clk 0:02:08.2]} 14... h5 {[%clk 0:01:36.4]} 15. Qf5
{[%clk 0:02:05.9]} 15... Qd6 {[%clk 0:01:33.3]} 16. Ne4 {[%clk 0:01:58.9]} 16...
Bxh2+ {[%clk 0:01:24.8]} 17. Kh1 {[%clk 0:01:59.5]} 17... Qc7 {[%clk 0:01:24.6]}
18. f4 {[%clk 0:01:55.9]} 18... e6 {[%clk 0:01:13.9]} 19. Qb5+ {[%clk
0:01:54.8]} 19... Kf8 {[%clk 0:01:08.1]} 20. Kxh2 {[%clk 0:01:54.3]} 20... Rc8
{[%clk 0:00:59.6]} 21. b3 {[%clk 0:01:53.8]} 21... f5 {[%clk 0:00:56.9]} 22.
Ba3+ {[%clk 0:01:52.6]} 22... Kf7 {[%clk 0:00:54.8]} 23. Ng5+ {[%clk 0:01:52.5]}
23... Kg6 {[%clk 0:00:46.8]} 24. Qxc4 {[%clk 0:01:50.4]} 1-0

[Event "*** SCC Grand Prix: Titled Tuesday Blitz"]
[Site "Chess.com"]
[Date "2020.10.06"]
[Round "5"]
[White "misterlamine"]
[Black "creativity"]
[Result "1-0"]
[WhiteElo "2330"]
[BlackElo "2063"]
[TimeControl "180+1"]
[EndTime "10:55:01 PDT"]
[Termination "misterlamine won on time"]

1. d4 {[%clk 0:03:00.9]} 1... f5 {[%clk 0:02:56.4]} 2. c4 {[%clk 0:03:00.6]}
2... Nf6 {[%clk 0:02:34.7]} 3. Nf3 {[%clk 0:02:56]} 3... g6 {[%clk 0:02:32.8]}
4. Nc3 {[%clk 0:02:52.6]} 4... Bg7 {[%clk 0:02:32.6]} 5. g3 {[%clk 0:02:51.7]}
5... O-O {[%clk 0:02:32.7]} 6. Bg2 {[%clk 0:02:52]} 6... d6 {[%clk 0:02:33.2]}
7. O-O {[%clk 0:02:52.5]} 7... Qe8 {[%clk 0:02:33.8]} 8. Re1 {[%clk 0:02:53]}
8... Ne4 {[%clk 0:02:30.9]} 9. Nxe4 {[%clk 0:02:49.1]} 9... fxe4 {[%clk
0:02:26.9]} 10. Ng5 {[%clk 0:02:49.3]} 10... Nc6 {[%clk 0:02:18.3]} 11. e3
{[%clk 0:02:32.6]} 11... e5 {[%clk 0:02:12.3]} 12. d5 {[%clk 0:02:30]} 12... Na5
{[%clk 0:01:39.1]} 13. b3 {[%clk 0:02:23.8]} 13... b5 {[%clk 0:01:29.4]} 14. Bd2
{[%clk 0:02:20.7]} 14... Nb7 {[%clk 0:01:28]} 15. Nxe4 {[%clk 0:02:20.1]} 15...
a5 {[%clk 0:01:24.4]} 16. Nc3 {[%clk 0:02:09.7]} 16... e4 {[%clk 0:01:13.1]} 17.
Nxb5 {[%clk 0:02:07.4]} 17... Qf7 {[%clk 0:00:26.5]} 18. Rf1 {[%clk 0:02:03.1]}
18... Nc5 {[%clk 0:00:24.2]} 19. Bc3 {[%clk 0:01:54.6]} 19... h5 {[%clk
0:00:13.6]} 20. Bxg7 {[%clk 0:01:53.4]} 20... Qxg7 {[%clk 0:00:12.7]} 21. Qd4
{[%clk 0:01:53.2]} 21... Rf7 {[%clk 0:00:05.5]} 22. Nc3 {[%clk 0:01:51.7]} 22...
Qxd4 {[%clk 0:00:03.4]} 23. exd4 {[%clk 0:01:52.6]} 23... Nd3 {[%clk 0:00:02.9]}
24. Bxe4 {[%clk 0:01:52.3]} 1-0